bitfinex/quotes_ETHUSD_20220308
["timestamp","ask_amount","ask_price","bid_price","bid_amount"]
[1646707385012,13.50136257,2550.3,2549.5,2.99567846]
[1646707385214,13.50136257,2550.3,2549.9,1.96116]
[1646707385215,3.35073707,2550.3,2549.9,1.96116]
[1646707385412,1.5665,2550.2,2550.0,1.47161]
[1646707385610,1.5665,2550.2,2549.9,1.96116]
[1646707385812,0.04433703,2550.1,2550.0,0.491]
[1646707386009,0.04433703,2550.1,2549.6,1.96116]
[1646707386211,0.04433703,2550.1,2549.7,0.491]
[1646707386511,10.49712349,2550.1,2549.8,8.19167846]
[1646707386718,3.3052632,2550.3,2550.1,4.0]
[1646707386911,3.34009648,2550.3,2550.2,3.5]
[1646707387157,0.0142968,2550.3,2550.0,3.0080675]
[1646707387359,0.0109264,2550.3,2550.2,6.132]
[1646707387560,0.0109264,2550.3,2550.2,0.491]
[1646707387762,0.00096,2550.9,2550.2,0.491]
[1646707387960,1.01915138,2550.4,2550.2,0.491]
[1646707388161,1.01915138,2550.4,2550.1,5.950473]
[1646707388162,1.01915138,2550.4,2550.1,1.450473]
[1646707388363,1.01915138,2550.4,2549.6,2.94148]
[1646707388561,1.01915138,2550.4,2549.5,2.94179]
[1646707388761,1.01915138,2550.4,2549.2,1.96168]
[1646707389162,1.32322835,2550.4,2549.4,0.98097]
[1646707389362,1.32322835,2550.4,2549.3,3.0]
[1646707389363,5.0,2550.2,2549.3,3.0]
[1646707389563,5.0,2550.1,2549.1,1.96195]
[1646707389764,5.0,2550.1,2548.3,1.0]
[1646707389765,6.0,2550.1,2548.3,1.0]
[1646707390263,0.00096,2550.0,2549.3,17.43586708]
[1646707390462,0.90503397,2548.5,2548.3,1.0]
[1646707390664,7.2603,2548.4,2548.0,2.28244051]
[1646707390909,1.70789795,2548.8,2548.4,5.0]
[1646707391115,1.70789795,2548.8,2548.2,12.1]
[1646707391116,1.70789795,2548.8,2548.7,1.01246471]
[1646707391312,0.00096,2550.2,2548.7,6.96519151]
[1646707391513,0.1286207,2551.0,2549.1,1.96196]
[1646707391514,0.00096,2550.4,2549.1,1.96196]
[1646707391910,0.491,2550.3,2548.8,2.15813927]
[1646707392114,0.00096,2550.2,2548.8,2.15813927]
[1646707392312,0.491,2550.1,2548.8,2.15813927]
[1646707392513,0.00096,2550.0,2548.9,3.5]
[1646707392712,3.4655,2550.2,2549.1,0.98093]
[1646707392713,3.46646,2550.2,2549.1,0.98093]
[1646707392912,4.47243444,2550.2,2549.5,2.99567846]
[1646707393112,4.3732,2550.1,2549.6,0.98067]
[1646707393516,4.3732,2550.1,2549.8,2.99567846]
[1646707393716,3.4655,2550.2,2550.0,17.6]
[1646707393912,0.00096,2550.9,2550.1,19.08667846]
[1646707393913,0.09574933,2550.4,2550.1,19.08667846]
[1646707394111,0.00096,2550.9,2550.1,19.08667846]
[1646707394112,4.842e-05,2550.8,2550.3,15.08867846]
[1646707394312,0.1382361,2551.3,2550.8,12.1]
[1646707394514,0.1382361,2551.3,2551.0,13.0800001]
[1646707394753,0.1382361,2551.3,2551.2,12.1]
[1646707394954,0.1382361,2551.3,2551.2,0.491]
[1646707395157,0.1382361,2551.3,2551.2,0.441]
[1646707395357,0.1382361,2551.3,2551.2,3.941]
[1646707395560,8.58713132,2551.3,2551.2,3.941]
[1646707395857,0.0833232,2551.9,2551.5,0.98002]
[1646707395858,0.06353633,2551.9,2551.5,0.98002]
[1646707396059,0.06353633,2551.9,2551.8,0.01298561]
[1646707396258,0.01132154,2551.9,2551.8,16.10398561]
[1646707396461,0.11913394,2552.1,2551.8,0.491]
[1646707396658,0.11913394,2552.1,2551.9,3.5]
[1646707396859,0.0017336,2552.0,2551.9,1.50738661]
[1646707397059,0.11913394,2552.1,2552.0,2.5]
[1646707397261,0.0032768,2552.5,2552.4,15.6]
[1646707397458,0.43093774,2554.0,2552.5,17.6]
[1646707397459,0.00096,2553.2,2552.5,17.6]
[1646707397658,0.0138688,2553.7,2553.0,0.0122728]
[1646707397960,0.00848784,2553.9,2553.6,1.97008219]
[1646707397961,0.4172144,2553.9,2553.6,1.97008219]
[1646707398161,0.4321438,2553.9,2553.7,12.72919997]
[1646707398409,0.01587,2553.9,2553.7,12.72919997]
[1646707398608,0.11953162,2553.9,2553.7,12.72919997]
[1646707398807,0.11953162,2553.9,2553.7,0.62919997]
[1646707399006,0.11953162,2553.9,2553.7,0.13819997]
[1646707399207,0.11953162,2553.9,2553.5,1.95803]
[1646707399407,2.84e-05,2554.1,2553.8,3.00161057]
[1646707399609,0.0746425,2555.1,2554.0,3.00146835]
[1646707399610,0.0187292,2554.7,2554.0,3.00146835]
[1646707399808,0.0746425,2555.1,2554.6,0.01215486]
[1646707400009,0.0746425,2555.1,2554.6,0.99082256]
[1646707400207,0.0746425,2555.1,2554.7,1.46951]
[1646707400408,0.0825191,2555.3,2554.7,5.00770997]
[1646707400612,0.0078297,2555.4,2554.8,0.3]
[1646707400811,3.52056328,2555.8,2554.8,0.3]
[1646707400812,0.0577052,2556.0,2555.3,2.98867846]
[1646707401007,0.5198772,2556.8,2555.5,0.978153]
[1646707401008,0.0198772,2556.8,2555.5,0.978153]
[1646707401212,3.18744341,2556.2,2555.9,0.01299204]
[1646707401409,0.0635746,2557.5,2556.2,4.5]
[1646707401610,0.0161688,2557.0,2556.7,1.16698639]
[1646707401817,1.787474,2557.8,2556.8,3.0]
[1646707402008,1.787474,2557.8,2557.4,0.01228044]
[1646707402260,1.787474,2557.8,2557.5,0.491]
[1646707402261,3.5,2557.7,2557.5,0.491]
[1646707402458,3.5,2557.7,2556.6,0.271]
[1646707402459,5.5,2557.7,2556.7,0.98997409]
[1646707402658,1.787474,2557.8,2556.8,3.991]
[1646707402659,0.04320019,2557.6,2556.8,3.991]
[1646707402865,1.18201781,2557.5,2556.8,3.991]
[1646707403060,1.22464957,2557.5,2556.8,3.991]
[1646707403259,0.04206334,2557.4,2557.0,1.95571]
[1646707403460,0.10113887,2557.7,2557.1,3.991]
[1646707403664,0.10113887,2557.7,2557.3,0.97751]
[1646707403865,0.10113887,2557.7,2557.4,3.991]
[1646707404062,0.075497,2558.1,2557.6,4.93216]
[1646707404063,0.0197842,2558.0,2557.6,4.93216]
[1646707404266,8.42e-05,2558.0,2557.9,2.98867846]
[1646707404466,0.02004536,2558.9,2558.0,5.5]
[1646707404664,3.41425498,2559.0,2558.7,3.00140088]
[1646707404665,0.00347572,2559.0,2558.7,3.00140088]
[1646707404864,1.71456386,2560.7,2558.7,3.00140088]
[1646707404865,0.01424787,2561.0,2558.9,2.98867846]
[1646707405068,2.25627837,2561.6,2560.9,2.88867846]
[1646707405266,0.1316873,2561.7,2561.3,0.96853873]
[1646707405465,0.1316873,2561.7,2561.3,0.01207855]
[1646707405667,0.02715296,2561.9,2561.6,2.90119494]
[1646707405918,0.1323282,2562.4,2561.8,2.90154712]
[1646707405919,0.0920074,2562.4,2561.8,2.90154712]
[1646707406110,3.55511336,2564.0,2562.3,2.80154712]
[1646707406111,1.45080836,2562.8,2562.3,2.80154712]
[1646707406308,1.45080836,2562.8,2562.7,2.81410764]
[1646707406309,1.15105296,2562.8,2562.7,2.81410764]
[1646707406514,0.0149644,2562.8,2562.7,0.491]
[1646707406713,0.05511336,2564.0,2562.7,0.491]
[1646707406912,0.05511336,2564.0,2562.8,3.5]
[1646707407111,0.05511336,2564.0,2563.1,0.01211563]
[1646707407413,0.04139112,2563.9,2563.2,0.59572208]
[1646707408215,2.61804703,2564.2,2563.2,0.59572208]
[1646707408216,2.61804703,2564.2,2563.2,0.4978]
[1646707408414,1.2941,2565.8,2564.1,2.8142952]
[1646707408618,1.2941,2565.8,2564.2,0.491]
[1646707408619,3.0,2565.0,2564.2,0.491]
[1646707408814,0.0203396,2565.1,2563.3,0.491]
[1646707408815,0.36582945,2564.1,2563.3,0.491]
[1646707409019,0.36582945,2564.1,2563.2,0.491]
[1646707409020,3.5,2564.0,2563.2,0.491]
[1646707409215,0.36582945,2564.1,2563.3,3.5]
[1646707409417,0.0203396,2565.1,2563.4,0.16619067]
[1646707409659,0.0212996,2565.1,2563.5,0.491]
[1646707409861,0.0212996,2565.1,2562.6,28.03445484]
[1646707409862,0.0203396,2565.1,2562.6,28.03445484]
[1646707410065,0.0203396,2565.1,2563.1,0.21702767]
[1646707410271,0.0203396,2565.1,2563.3,0.01290937]
[1646707410462,0.0203396,2565.1,2562.7,0.2300097]
[1646707410663,3.0,2563.5,2562.3,0.044215]
[1646707410864,3.0,2563.5,2562.7,1.21624255]
[1646707410865,3.45,2563.4,2562.7,1.21624255]
[1646707411063,3.45,2563.4,2561.0,0.5]
[1646707411064,3.80752141,2563.4,2561.0,0.5]
[1646707411265,1.0,2563.3,2561.2,0.491]
[1646707411465,3.5,2563.8,2561.2,0.13819997]
[1646707411680,1.1975991,2563.9,2561.3,0.491]
[1646707411867,3.0,2563.2,2561.8,5.0]
[1646707412064,1.0,2563.8,2561.7,0.01277741]
[1646707412065,1.06598959,2563.1,2561.7,0.01277741]
[1646707412263,1.06598959,2563.1,2561.5,0.491]
[1646707412464,3.0,2563.0,2562.2,1.0]
[1646707412665,3.0,2563.0,2561.2,0.62919997]
[1646707412666,3.5,2563.0,2561.2,0.62919997]
[1646707412872,3.0,2562.6,2561.2,0.62919997]
[1646707413068,1.00492164,2561.8,2560.0,0.17489508]
[1646707413269,4.1104,2562.9,2562.0,0.1944179]
[1646707413270,7.13709963,2562.8,2562.0,0.1944179]
[1646707413506,7.13709963,2562.8,2561.3,0.5]
[1646707413507,5.1944,2562.0,2561.3,0.5]
[1646707413711,2.9131,2561.4,2560.0,0.13819997]
[1646707413905,3.0,2561.5,2559.3,3.51281011]
[1646707413906,3.0,2561.2,2559.3,3.51281011]
[1646707414109,0.896612,2560.5,2559.5,1.07880346]
[1646707414308,0.896612,2560.5,2559.3,0.01281011]
[1646707414506,4.1104,2560.4,2558.8,0.01271026]
[1646707414706,4.1104,2560.4,2558.6,27.74807154]
[1646707414707,3.0,2559.5,2558.6,27.74807154]
[1646707414910,0.491,2559.5,2558.6,27.74807154]
[1646707415111,3.0,2559.3,2558.6,27.74807154]
[1646707415311,1.0,2559.8,2557.6,0.9628]
[1646707415312,1.10270273,2558.5,2557.6,0.9628]
[1646707415516,3.0,2558.5,2557.6,0.9628]
[1646707415712,3.50096,2559.1,2557.6,0.9628]
[1646707415713,4.0,2558.9,2557.7,0.04149491]
[1646707415913,0.491,2558.8,2557.7,0.04149491]
[1646707416112,3.891,2558.8,2557.7,0.04149491]
[1646707416313,3.0,2558.5,2557.0,1.04547388]
[1646707416515,1.3,2558.9,2557.0,1.04547388]
[1646707416516,1.02215845,2557.4,2557.0,1.04547388]
[1646707416715,1.02215845,2557.4,2557.1,0.04490545]
[1646707416918,4.02215845,2557.4,2557.1,0.04490545]
[1646707417184,3.00096,2557.9,2556.1,3.5]
[1646707417377,3.00096,2557.9,2556.0,21.28617625]
[1646707417378,0.00096,2557.9,2557.1,0.5]
[1646707417577,0.00096,2558.3,2557.2,3.5]
[1646707417776,4.0,2559.3,2557.2,3.5]
[1646707417976,4.0,2559.3,2557.3,12.1]
[1646707417977,3.0,2558.6,2557.3,12.1]
[1646707418176,0.49196,2559.0,2557.5,0.91558437]
[1646707418177,3.0,2558.8,2557.5,0.91558437]
[1646707418378,0.00096,2558.5,2557.6,3.5]
[1646707418581,0.00096,2558.5,2557.5,0.92838872]
[1646707418582,0.00096,2558.9,2557.7,0.491]
[1646707418786,0.00096,2559.6,2557.7,0.491]
[1646707418982,0.00096,2559.6,2557.8,3.5]
[1646707419181,0.00096,2559.6,2558.9,1.0035639]
[1646707419382,1.2362,2560.3,2558.9,1.0035639]
[1646707419383,0.94388453,2559.9,2558.9,1.0035639]
[1646707419594,0.00096,2560.2,2558.9,1.4945639]
[1646707419595,3.6215,2559.7,2558.9,1.4945639]
[1646707419787,3.6215,2559.7,2559.0,3.5]
[1646707419986,3.6215,2559.7,2559.1,0.491]
[1646707420187,3.6215,2559.7,2559.2,0.491]
[1646707420587,3.6215,2559.7,2559.2,0.0052284]
[1646707420785,6.6215,2559.7,2559.2,0.0052284]
[1646707421016,3.6215,2559.7,2559.2,0.0052284]
[1646707421216,3.6215,2559.7,2559.3,0.491]
[1646707421417,0.00096,2560.2,2559.3,0.491]
[1646707421616,0.00096,2560.7,2559.4,3.5]
[1646707421817,0.00096,2560.7,2559.5,5.991]
[1646707422017,3.0,2563.4,2559.5,5.991]
[1646707422018,0.00096,2561.6,2560.2,3.0]
[1646707422221,1.8304,2562.4,2560.6,1.0]
[1646707422418,1.8304,2562.4,2561.2,1.0]
[1646707422619,1.8304,2562.4,2561.2,1.491]
[1646707423220,0.3908,2563.1,2561.8,0.9674874]
[1646707423417,0.00248615,2563.4,2561.8,1.4584874]
[1646707423620,0.00248615,2563.4,2561.2,1.95145]
[1646707423821,3.0,2562.6,2560.6,3.51209292]
[1646707424020,3.491,2562.6,2560.3,0.03597821]
[1646707424220,3.0,2561.5,2560.3,0.03597821]
[1646707424419,3.0,2561.5,2560.0,1.0]
[1646707424420,3.991,2561.4,2560.0,1.0]
[1646707424661,3.991,2561.4,2559.3,0.3908]
[1646707424662,3.0,2560.5,2559.3,0.3908]
[1646707424860,6.991,2560.4,2558.7,0.2119598]
[1646707425064,0.491,2560.3,2557.6,0.3908]
[1646707425264,0.491,2560.3,2557.9,0.5]
[1646707425265,3.0,2559.4,2557.9,0.5]
[1646707425462,3.991,2559.3,2557.9,0.5]
[1646707425762,3.991,2559.3,2556.9,0.491]
[1646707425763,1.0,2558.5,2557.6,0.02219558]
[1646707425962,3.991,2558.4,2556.7,3.5]
[1646707426175,3.991,2558.4,2556.4,0.2151096]
[1646707426176,3.0,2557.3,2556.4,0.2151096]
[1646707426362,4.29196,2558.4,2556.4,0.2151096]
[1646707426363,0.491,2557.2,2556.4,0.2151096]
[1646707426562,0.00096,2558.0,2556.4,0.2151096]
[1646707426761,0.00096,2558.0,2556.8,1.07319419]
[1646707426762,1.11916693,2557.7,2556.8,1.07319419]
[1646707426960,6.132,2559.0,2556.8,1.07319419]
[1646707426961,0.49196,2558.4,2556.8,1.07319419]
[1646707427163,0.00096,2557.9,2556.9,3.5]
[1646707427365,0.00096,2558.3,2556.9,3.5]
[1646707427572,0.5,2558.6,2557.5,0.01201637]
[1646707427765,0.5,2558.6,2557.5,2.39001637]
[1646707427963,0.5,2558.6,2558.2,1.18355386]
[1646707427964,0.00282344,2558.4,2558.2,1.18355386]
[1646707428162,0.00282344,2558.4,2557.6,3.5]
[1646707428408,0.00282344,2558.4,2557.5,0.01201637]
[1646707428613,0.00282344,2558.4,2557.0,3.69046141]
[1646707428614,0.00282344,2558.4,2557.0,2.14525141]
[1646707428911,0.00096,2558.5,2556.9,3.5]
[1646707429110,1.18219897,2558.3,2557.3,1.01105514]
[1646707429308,0.00282388,2558.4,2557.3,1.01105514]
[1646707429508,0.00282388,2558.4,2557.4,3.5]
[1646707429709,0.00282388,2558.4,2557.6,0.9772828]
[1646707429910,0.00282388,2558.4,2557.4,3.5]
[1646707430111,0.00096,2559.1,2558.1,0.02876283]
[1646707430308,1.7862,2559.2,2558.1,0.91152254]
[1646707430511,0.00554199,2558.4,2558.1,0.91152254]
[1646707431116,0.01771357,2559.3,2558.4,0.00745586]
[1646707431315,1.357e-05,2559.3,2558.8,1.22341802]
[1646707431515,1.357e-05,2559.3,2558.8,0.97693]
[1646707431726,1.357e-05,2559.3,2558.9,3.5]
[1646707431915,1.357e-05,2559.3,2558.8,1.76793]
[1646707432163,1.357e-05,2559.3,2558.7,1.95367]
[1646707432573,1.357e-05,2559.3,2558.4,0.00745586]
[1646707432970,0.00282417,2559.2,2558.4,0.00745586]
[1646707433568,1.357e-05,2559.3,2559.2,0.00195024]
[1646707433969,0.01129434,2559.5,2559.2,0.00195024]
[1646707434469,0.01129434,2559.5,2559.2,1.10282026]
[1646707434869,0.00096,2560.1,2559.2,1.10282026]
[1646707435071,0.49685719,2560.2,2559.4,0.97675]
[1646707435269,0.49685719,2560.2,2559.7,1.0]
[1646707435469,3.5419,2560.5,2559.7,1.0]
[1646707435470,1.2245,2560.5,2559.7,1.0]
[1646707435770,1.7213,2560.5,2559.7,2.13145696]
[1646707436010,1.7213,2560.5,2559.7,1.0]
[1646707436211,1.7213,2560.5,2559.2,0.00195024]
[1646707436415,0.00554044,2560.2,2559.2,0.00195024]
[1646707436610,1.7213,2560.5,2559.2,0.00195024]
[1646707436611,0.491,2560.1,2559.2,0.00195024]
[1646707436812,0.491,2560.0,2559.2,0.00195024]
[1646707437012,0.93235029,2559.6,2559.2,0.00195024]
[1646707437413,1.7213,2560.5,2559.3,5.991]
[1646707437617,1.7213,2560.5,2560.4,0.04349956]
[1646707437814,1.2245,2560.5,2560.4,0.04349956]
[1646707438015,1.2168,2561.8,2560.4,0.04349956]
[1646707438215,13.95746464,2561.9,2561.5,0.04349956]
[1646707438416,1.6407,2563.1,2561.7,1.15416773]
[1646707438417,2.1407,2563.1,2561.7,1.15416773]
[1646707438617,2.1407,2563.1,2562.1,0.9756694]
[1646707438618,0.891,2563.1,2562.1,0.9756694]
[1646707438815,0.891,2563.1,2562.2,3.4]
[1646707439014,5.1988,2564.1,2563.0,0.04349956]
[1646707439217,7.8336396,2564.7,2563.1,2.04349956]
[1646707439218,5.0377396,2564.7,2563.1,2.04349956]
[1646707439415,0.0203396,2564.7,2563.8,0.9338945]
[1646707439721,0.0203396,2564.7,2563.1,0.04349956]
[1646707439722,2.95650044,2564.5,2563.1,0.04349956]
[1646707439921,0.04263176,2564.6,2562.3,0.04349956]
[1646707439922,0.01208882,2564.3,2562.3,0.04349956]
[1646707440127,0.50308882,2564.3,2562.1,1.0]
[1646707440325,0.01207028,2564.1,2562.0,4.5]
[1646707440527,0.01207028,2564.1,2562.2,3.5]
[1646707440728,1.01997121,2563.9,2562.5,0.04349956]
[1646707440933,1.01997121,2563.9,2562.0,0.04349956]
[1646707440934,2.95650044,2563.8,2562.0,0.04349956]
[1646707441128,2.95650044,2563.8,2561.8,4.53333971]
[1646707441129,0.01283782,2563.4,2561.8,1.03333971]
[1646707441328,0.01283782,2563.4,2561.8,0.03333971]
[1646707441329,0.00554108,2563.2,2561.8,0.03333971]
[1646707441532,0.00554108,2563.2,2560.9,4.5]
[1646707441533,0.01258279,2562.5,2560.9,4.5]
[1646707441729,4.51354279,2562.5,2560.9,3.5]
[1646707441928,4.51354279,2562.5,2561.2,0.90705929]
[1646707441929,1.16756801,2562.2,2561.2,0.90705929]
[1646707442328,3.50096,2562.8,2561.2,0.90705929]
[1646707442529,0.00096,2562.8,2561.2,0.90705929]
[1646707442735,0.03333971,2563.1,2561.4,4.5]
[1646707442736,0.10529211,2562.2,2561.4,4.5]
[1646707442928,0.10529211,2562.2,2561.3,0.491]
[1646707442929,0.10529211,2562.2,2561.6,1.0]
[1646707443130,0.10529211,2562.2,2561.6,1.441]
[1646707443329,0.10529211,2562.2,2561.8,1.95156]
[1646707443832,3.53429971,2563.1,2561.8,1.95156]
[1646707444030,0.0024,2562.2,2561.8,1.95156]
[1646707444429,0.0024,2562.2,2561.8,1.95276]
[1646707444634,0.0024,2562.2,2561.4,1.0]
[1646707444931,0.0024,2562.2,2560.6,0.391]
[1646707444932,3.0,2561.8,2560.6,0.391]
[1646707445234,3.0,2561.8,2560.2,0.15791351]
[1646707445235,1.0,2560.9,2560.2,0.15791351]
[1646707445430,1.0,2560.9,2559.7,1.0]
[1646707445431,3.5,2560.8,2559.7,1.0]
[1646707445632,3.991,2560.8,2559.7,1.0]
[1646707445836,0.491,2560.8,2559.7,1.0]
[1646707446031,0.491,2561.2,2559.7,1.0]
[1646707446231,0.00096,2561.2,2559.7,1.0]
[1646707446433,0.08404464,2560.8,2559.7,1.0]
[1646707446632,0.91042179,2560.4,2559.3,0.00560614]
[1646707447032,3.5,2560.3,2559.3,0.00560614]
[1646707447264,3.5,2560.3,2559.2,0.00195024]
[1646707447265,3.0,2560.0,2559.2,0.00195024]
[1646707447467,3.0,2560.0,2558.4,0.00745586]
[1646707447468,5.5,2559.8,2558.4,0.00745586]
[1646707447670,3.991,2559.7,2558.4,0.00745586]
[1646707447872,0.31262579,2559.6,2558.4,0.00745586]
[1646707448069,0.491,2559.5,2558.4,0.00745586]
[1646707448271,0.49196,2559.5,2558.4,0.00745586]
[1646707448470,0.5,2559.3,2558.4,0.00745586]
[1646707448670,3.991,2559.2,2558.4,0.00745586]
[1646707448869,1.0,2558.8,2558.4,0.00745586]
[1646707449081,6.991,2559.2,2558.4,0.00745586]
[1646707449082,0.00096,2559.2,2558.4,0.00745586]
[1646707449271,0.5,2559.2,2558.5,1.01571054]
[1646707449670,1.0,2560.3,2558.4,0.00745586]
[1646707449671,0.03429971,2560.2,2558.4,0.00745586]
[1646707449872,0.00096,2559.9,2558.4,0.00745586]
[1646707450070,0.491,2559.8,2558.4,0.00745586]
[1646707450273,0.03429971,2560.2,2558.7,0.9772]
[1646707450274,0.00096,2560.0,2558.7,0.9772]
[1646707450674,0.00096,2560.0,2559.7,1.07154772]
[1646707450908,0.03333971,2560.2,2559.7,1.07154772]
[1646707451109,0.03333971,2560.2,2558.8,3.5]
[1646707451312,0.08401564,2559.9,2559.2,0.00560255]
[1646707451910,0.491,2559.8,2559.2,0.00560255]
[1646707452113,1.0555063,2559.5,2558.5,0.99844702]
[1646707452310,1.0555063,2559.5,2557.9,3.5]
[1646707452510,1.0555063,2559.5,2559.2,0.00560277]
[1646707453114,0.3,2559.6,2559.2,0.00560277]
[1646707453312,0.08497237,2560.1,2559.2,0.00560277]
[1646707453513,0.08401237,2560.1,2559.2,0.00560277]
[1646707453715,0.50096,2560.4,2558.5,1.0]
[1646707453912,0.08401564,2559.9,2559.2,0.00560255]
[1646707454111,0.08401564,2559.9,2559.3,1.0532188]
[1646707454513,0.00096,2560.3,2559.9,0.05841138]
[1646707454759,0.5,2560.4,2559.9,0.05841138]
[1646707454959,0.08401237,2560.1,2559.9,1.138e-05]
[1646707455161,5.5,2560.0,2559.3,1.0]
[1646707455559,5.8,2560.0,2559.3,1.0]
[1646707455762,1.0,2559.8,2559.3,0.0001]
[1646707455962,0.3,2559.8,2559.3,0.0001]
[1646707456264,5.81225248,2560.0,2559.1,0.00084024]
[1646707456265,0.5,2559.6,2559.1,0.00084024]
[1646707456667,0.5,2559.6,2559.1,0.97793024]
[1646707456867,0.5,2559.6,2559.1,0.97709]
[1646707457068,0.5,2559.6,2558.9,0.04584518]
[1646707457669,0.00377319,2560.0,2558.9,0.04584518]
[1646707458071,0.97743812,2559.4,2558.9,0.04584518]
[1646707458511,0.97743812,2559.4,2558.9,0.04668548]
[1646707458713,0.3,2559.6,2558.9,0.04668548]
[1646707459011,0.3,2559.6,2558.9,0.0008403]
[1646707459012,0.3,2559.5,2558.9,0.0008403]
[1646707459215,0.3,2559.6,2558.9,0.0008403]
[1646707459412,1.0,2559.7,2558.6,0.97729]
[1646707459611,1.0,2559.7,2558.4,0.98469586]
[1646707459612,0.00096,2559.6,2558.4,0.00745586]
[1646707459813,0.00096,2559.6,2559.1,8.932e-05]
[1646707459814,0.19182514,2559.6,2559.1,8.932e-05]
[1646707460712,0.19182514,2559.6,2558.4,0.00745586]
[1646707461112,1.14100006,2559.1,2558.4,0.00745586]
[1646707461715,1.10043787,2559.1,2558.4,0.00745586]
[1646707462861,1.09372317,2559.1,2558.4,0.00745586]
[1646707463361,0.3,2559.2,2558.6,0.00558836]
[1646707463761,1.0,2559.4,2558.6,0.00558836]
[1646707464161,1.0,2559.4,2559.3,0.02287476]
[1646707464363,2.04095841,2559.4,2559.3,0.02287476]
[1646707465165,1.0,2559.4,2559.3,0.02287476]
[1646707465364,0.3,2559.5,2559.3,0.02287476]
[1646707465567,0.3,2559.6,2559.3,0.02287476]
[1646707465763,0.00558632,2559.9,2559.3,0.02287476]
[1646707466219,0.00558632,2559.9,2559.3,2.95381476]
[1646707466618,0.03429971,2560.3,2559.3,0.02287476]
[1646707467019,0.00558659,2559.9,2559.3,0.02287476]
[1646707467219,1.2309778,2559.4,2559.3,0.02287476]
[1646707467420,1.2309778,2559.4,2559.0,0.00558851]
[1646707467421,5.0,2559.3,2559.0,0.00558851]
[1646707467620,1.2309778,2559.4,2558.7,0.02154096]
[1646707467621,4.0,2559.2,2558.7,0.02154096]
[1646707467822,4.0,2559.2,2558.3,1.95477]
[1646707468219,0.00647392,2558.7,2558.3,1.95477]
[1646707468622,0.00647392,2558.7,2558.3,3.1475662]
[1646707468825,0.00647392,2558.7,2558.3,1.95477]
[1646707469681,0.00647392,2558.7,2558.3,1.71222586]
[1646707469881,0.4033758,2559.8,2559.7,47.76158828]
[1646707470083,1.20761356,2559.4,2558.3,1.18643585]
[1646707470282,1.50761356,2559.4,2558.3,1.18643585]
[1646707470482,1.50761356,2559.4,2558.2,17.90853426]
[1646707471490,1.50761356,2559.4,2558.2,18.94059346]
[1646707471690,1.50761356,2559.4,2558.7,8.559e-05]
[1646707471888,0.97767,2559.3,2558.7,8.559e-05]
[1646707472091,3.0,2559.2,2558.7,8.559e-05]
[1646707472287,4.3,2559.2,2558.7,8.559e-05]
[1646707472688,5.01232535,2559.2,2557.8,0.39]
[1646707472887,1.07766924,2558.4,2557.7,0.17862269]
[1646707473087,1.07766924,2558.4,2557.4,0.272]
[1646707473088,4.07766924,2558.4,2557.4,0.272]
[1646707473290,5.37766924,2558.4,2557.4,0.272]
[1646707473718,3.0,2558.1,2557.4,0.272]
[1646707473916,3.3,2558.1,2557.4,0.272]
[1646707474122,1.01251402,2557.6,2557.4,0.272]
[1646707474320,1.01251402,2557.6,2557.4,0.0012]
[1646707474522,0.3,2557.7,2556.3,1.36939]
[1646707474720,0.3,2557.7,2556.3,1.16939]
[1646707474920,0.00096,2557.6,2556.3,0.1911]
[1646707475121,0.3,2557.6,2556.3,0.1911]
[1646707475324,0.97837,2557.3,2556.1,1.95655]
[1646707475523,0.00096,2557.7,2556.3,0.9783]
[1646707475720,0.00096,2557.7,2557.0,1.11827458]
[1646707475919,0.50096,2557.8,2557.0,1.11827458]
[1646707476124,0.5,2557.8,2557.0,1.11827458]
[1646707476728,0.5,2557.8,2557.2,0.00558438]
[1646707477466,0.5,2557.8,2557.2,0.9778362]
[1646707477667,0.00096,2558.4,2557.0,1.11827458]
[1646707477868,0.00096,2558.4,2557.4,0.00558421]
[1646707478371,1.0904605,2558.4,2557.4,0.89884713]
[1646707478570,0.97798,2558.3,2557.4,0.00558421]
[1646707478770,0.97798,2558.3,2557.1,1.95568]
[1646707478969,1.27798,2558.3,2557.1,1.95568]
[1646707479169,1.27798,2558.3,2557.8,0.00558377]
[1646707479373,1.27798,2558.3,2557.8,8.377e-05]
[1646707479873,3.5,2558.2,2556.9,1.9559]
[1646707480073,3.50096,2558.2,2556.9,1.9559]
[1646707480273,4.50096,2558.2,2557.4,1.0534843]
[1646707480576,0.5,2557.8,2557.1,0.97797]
[1646707481015,3.5,2557.7,2556.0,4.22377125]
[1646707481216,3.5,2557.7,2556.2,1.0]
[1646707481217,3.50096,2557.7,2556.2,1.0]
[1646707481416,3.50096,2557.7,2557.3,9.997e-05]
[1646707481417,0.00096,2557.7,2557.3,9.997e-05]
[1646707481619,1.3,2557.7,2557.3,9.997e-05]
[1646707481817,5.0,2557.6,2556.9,0.00010309]
[1646707482021,5.0,2557.6,2556.1,0.97836]
[1646707482022,3.0,2557.2,2556.1,0.97836]
[1646707482218,3.97844,2557.0,2555.7,1.95684]
[1646707482418,3.0,2556.7,2555.8,0.1955]
[1646707482619,0.01207175,2556.8,2555.3,0.1955]
[1646707482823,0.00096,2556.6,2556.1,1.05907211]
[1646707483019,0.00096,2556.8,2556.2,0.1955]
[1646707483217,0.97839,2557.0,2556.2,0.1955]
[1646707483818,3.5,2557.1,2555.3,0.1955]
[1646707484017,0.00096,2556.9,2555.3,13.2955]
[1646707484217,0.00096,2556.9,2555.4,13.0784697]
[1646707484418,0.00096,2556.9,2555.7,0.3962]
[1646707484419,0.97844,2556.8,2555.7,0.3962]
[1646707484663,0.97844,2556.8,2555.5,3.49726253]
[1646707484664,3.5,2556.7,2556.0,1.0515241]
[1646707484861,0.97844,2556.8,2556.1,0.1955]
[1646707485062,0.97844,2556.8,2555.6,0.1955]
[1646707485263,0.00096,2556.9,2556.0,0.00279738]